[Event "January 9 Early 2024"]
[Site "https://www.chess.com"]
[Date "2024.01.11"]
[Round "8"]
[White "Abdulrahman Mohammad, Al Taher"]
[Black "Lopez Idarraga, Daniel Eduardo"]
[Result "0-1"]
[Board "235"]
[TimeControl "180+1"]
[WhiteFideId "9310258"]
[BlackFideId "4405501"]
[WhiteElo "2238"]
[BlackElo "2417"]
[WhiteTeam "UAE"]
[BlackTeam "COL"]
[WhiteClock "0:00:03"]
[BlackClock "0:00:08"]

1. d4 {[%clk 0:03:00]}  d5 {[%clk 0:02:59]} 2. c4 {[%clk 0:03:01]}  c6 {[%clk 0:02:59]} 3. Nc3 {[%clk 0:02:57]}  Nf6 {[%clk 0:02:59]} 4. e3 {[%clk 0:02:57]}  Bf5 {[%clk 0:02:49]} 5. cxd5 {[%clk 0:02:56]}  cxd5 {[%clk 0:02:50]} 6. Qb3 {[%clk 0:02:57]}  Qd7 {[%clk 0:02:50]} 7. Nf3 {[%clk 0:02:54]}  a6 {[%clk 0:02:47]} 8. Ne5 {[%clk 0:02:51]}  Qc7 {[%clk 0:02:36]} 9. Nxd5 {[%clk 0:02:46]}  Nxd5 {[%clk 0:02:36]} 10. Qxd5 {[%clk 0:02:47]}  e6 {[%clk 0:02:36]} 11. Qb3 {[%clk 0:02:45]}  Nc6 {[%clk 0:02:34]} 12. Nxc6 {[%clk 0:02:21]}  bxc6 {[%clk 0:02:35]} 13. Bd2 {[%clk 0:02:16]}  Rb8 {[%clk 0:02:33]} 14. Qc3 {[%clk 0:01:54]}  Bb4 {[%clk 0:02:31]} 15. Qc1 {[%clk 0:01:53]}  O-O {[%clk 0:02:26]} 16. Bxb4 {[%clk 0:01:47]}  Rxb4 {[%clk 0:02:27]} 17. Bc4 {[%clk 0:01:43]}  c5 {[%clk 0:02:20]} 18. dxc5 {[%clk 0:01:37]}  Qxc5 {[%clk 0:02:19]} 19. b3 {[%clk 0:01:37]}  a5 {[%clk 0:02:11]} 20. O-O {[%clk 0:01:35]}  a4 {[%clk 0:02:11]} 21. Qd2 {[%clk 0:01:10]}  axb3 {[%clk 0:02:06]} 22. Bxb3 {[%clk 0:01:08]}  Ra8 {[%clk 0:02:02]} 23. Rac1 {[%clk 0:01:05]}  Qb6 {[%clk 0:01:59]} 24. Qd7 {[%clk 0:00:56]}  Qb7 {[%clk 0:01:57]} 25. Rfd1 {[%clk 0:00:52]}  Qxd7 {[%clk 0:01:37]} 26. Rxd7 {[%clk 0:00:53]}  Bg6 {[%clk 0:01:33]} 27. f3 {[%clk 0:00:39]}  h5 {[%clk 0:01:32]} 28. e4 {[%clk 0:00:39]}  h4 {[%clk 0:01:32]} 29. Kf2 {[%clk 0:00:37]}  Ra5 {[%clk 0:01:28]} 30. Rcc7 {[%clk 0:00:23]}  Re5 {[%clk 0:01:19]} 31. Ke3 {[%clk 0:00:18]}  Ra5 {[%clk 0:01:08]} 32. Rd8+ {[%clk 0:00:17]}  Kh7 {[%clk 0:01:07]} 33. Rcc8 {[%clk 0:00:16]}  Bh5 {[%clk 0:01:02]} 34. Rh8+ {[%clk 0:00:15]}  Kg6 {[%clk 0:01:02]} 35. Rhd8 {[%clk 0:00:11]}  f5 {[%clk 0:00:53]} 36. Bxe6 {[%clk 0:00:09]}  fxe4 {[%clk 0:00:51]} 37. fxe4 {[%clk 0:00:08]}  Rb2 {[%clk 0:00:45]} 38. Bf5+ {[%clk 0:00:06]}  Kf6 {[%clk 0:00:43]} 39. Rd6+ {[%clk 0:00:06]}  Ke7 {[%clk 0:00:38]} 40. Re6+ {[%clk 0:00:04]}  Kf7 {[%clk 0:00:37]} 41. Rc7+ {[%clk 0:00:05]}  Kf8 {[%clk 0:00:36]} 42. Rc8+ {[%clk 0:00:03]}  Kf7 {[%clk 0:00:36]} 43. Rc7+ {[%clk 0:00:03]}  Kf8 {[%clk 0:00:36]} 44. Rec6 {[%clk 0:00:04]}  g5 {[%clk 0:00:22]} 45. Rc8+ {[%clk 0:00:04]}  Ke7 {[%clk 0:00:21]} 46. R6c7+ {[%clk 0:00:04]}  Kd6 {[%clk 0:00:18]} 47. Rd7+ {[%clk 0:00:04]}  Ke5 {[%clk 0:00:18]} 48. Re8+ {[%clk 0:00:04]}  Bxe8 {[%clk 0:00:17]} 49. Re7+ {[%clk 0:00:04]}  Kf6 {[%clk 0:00:17]} 50. Rxe8 {[%clk 0:00:05]}  Ra3+ {[%clk 0:00:16]} 51. Kd4 {[%clk 0:00:04]}  Rd2+ {[%clk 0:00:14]} 52. Kc5 {[%clk 0:00:04]}  Raxa2 {[%clk 0:00:13]} 53. Rf8+ {[%clk 0:00:01]}  Ke5 {[%clk 0:00:13]} 54. Re8+ {[%clk 0:00:02]}  Kf4 {[%clk 0:00:13]} 55. Rg8 {[%clk 0:00:02]}  Rac2+ {[%clk 0:00:11]} 56. Kb4 {[%clk 0:00:03]}  Rxg2 {[%clk 0:00:12]} 57. Bg6 {[%clk 0:00:02]}  Rxh2 {[%clk 0:00:12]} 58. Rf8+ {[%clk 0:00:03]}  Kg3 {[%clk 0:00:10]} 59. e5 {[%clk 0:00:03]}  Rb2+ {[%clk 0:00:10]} 60. Kc5 {[%clk 0:00:03]}  Rhe2 {[%clk 0:00:11]} 61. Kd6 {[%clk 0:00:03]}  h3 {[%clk 0:00:12]} 62. e6 {[%clk 0:00:04]}  g4 {[%clk 0:00:11]} 63. e7 {[%clk 0:00:04]}  Rbd2+ {[%clk 0:00:11]} 64. Kc7 {[%clk 0:00:04]}  Rxe7+ {[%clk 0:00:11]} 65. Kc8 {[%clk 0:00:05]}  Ra2 {[%clk 0:00:09]} 66. Kb8 {[%clk 0:00:05]}  Raa7 {[%clk 0:00:09]} 67. Rc8 {[%clk 0:00:03]}  Reb7# {[%clk 0:00:08]} 0-1

[Event "January 9 Early 2024"]
[Site "https://www.chess.com"]
[Date "2024.01.11"]
[Round "8"]
[White "Vincenti, Leonardo"]
[Black "Tuncer, Tuna"]
[Result "0-1"]
[Board "237"]
[TimeControl "180+1"]
[WhiteFideId "28550820"]
[BlackFideId "6349269"]
[WhiteElo "2233"]
[BlackElo "2628"]
[WhiteTeam "ITA"]
[BlackTeam "TUR"]
[WhiteClock "0:00:14"]
[BlackClock "0:00:31"]

1. e4 {[%clk 0:03:00]}  g6 {[%clk 0:03:00]} 2. d4 {[%clk 0:02:56]}  Bg7 {[%clk 0:03:01]} 3. Nf3 {[%clk 0:02:54]}  d6 {[%clk 0:03:02]} 4. Nc3 {[%clk 0:02:53]}  a6 {[%clk 0:03:01]} 5. a4 {[%clk 0:02:49]}  Nc6 {[%clk 0:03:02]} 6. Be3 {[%clk 0:02:49]}  Nf6 {[%clk 0:02:59]} 7. h3 {[%clk 0:02:49]}  O-O {[%clk 0:02:57]} 8. Qd2 {[%clk 0:02:48]}  e5 {[%clk 0:02:55]} 9. d5 {[%clk 0:02:48]}  Ne7 {[%clk 0:02:49]} 10. Be2 {[%clk 0:02:26]}  Nd7 {[%clk 0:02:41]} 11. g4 {[%clk 0:02:23]}  a5 {[%clk 0:02:24]} 12. h4 {[%clk 0:02:12]}  Nc5 {[%clk 0:02:22]} 13. Rg1 {[%clk 0:02:02]}  Bd7 {[%clk 0:02:02]} 14. h5 {[%clk 0:01:56]}  Nc8 {[%clk 0:01:59]} 15. hxg6 {[%clk 0:01:44]}  fxg6 {[%clk 0:01:56]} 16. Bh6 {[%clk 0:01:37]}  Qf6 {[%clk 0:01:41]} 17. O-O-O {[%clk 0:00:58]}  Nxa4 {[%clk 0:01:39]} 18. Nxa4 {[%clk 0:00:58]}  Bxa4 {[%clk 0:01:39]} 19. Rh1 {[%clk 0:00:56]}  Bd7 {[%clk 0:01:35]} 20. Ng5 {[%clk 0:00:32]}  Rf7 {[%clk 0:00:37]} 21. Nxf7 {[%clk 0:00:29]}  Qxf7 {[%clk 0:00:37]} 22. Bxg7 {[%clk 0:00:28]}  Qxg7 {[%clk 0:00:38]} 23. Qg5 {[%clk 0:00:18]}  Nb6 {[%clk 0:00:35]} 24. Rh6 {[%clk 0:00:12]}  Rf8 {[%clk 0:00:34]} 25. f3 {[%clk 0:00:04]}  Qf6 {[%clk 0:00:31]} 26. Qxf6 {[%clk 0:00:04]}  Rxf6 {[%clk 0:00:32]} 27. Rdh1 {[%clk 0:00:04]}  Rf7 {[%clk 0:00:32]} 28. g5 {[%clk 0:00:03]}  Na4 {[%clk 0:00:25]} 29. b3 {[%clk 0:00:02]}  Nc5 {[%clk 0:00:25]} 30. Kd2 {[%clk 0:00:03]}  b6 {[%clk 0:00:22]} 31. R6h4 {[%clk 0:00:03]}  Bc8 {[%clk 0:00:19]} 32. Rg1 {[%clk 0:00:03]}  Bd7 {[%clk 0:00:19]} 33. Rgh1 {[%clk 0:00:03]}  Be8 {[%clk 0:00:19]} 34. Rg1 {[%clk 0:00:04]}  Rg7 {[%clk 0:00:20]} 35. Rgh1 {[%clk 0:00:04]}  Bd7 {[%clk 0:00:20]} 36. R1h2 {[%clk 0:00:05]}  Kh8 {[%clk 0:00:19]} 37. Rh1 {[%clk 0:00:05]}  Rf7 {[%clk 0:00:20]} 38. Rh6 {[%clk 0:00:05]}  Kg8 {[%clk 0:00:19]} 39. R1h2 {[%clk 0:00:05]}  a4 {[%clk 0:00:19]} 40. bxa4 {[%clk 0:00:02]}  Bxa4 {[%clk 0:00:19]} 41. Rh1 {[%clk 0:00:02]}  Nd7 {[%clk 0:00:15]} 42. Ra1 {[%clk 0:00:03]}  Nc5 {[%clk 0:00:16]} 43. Ra3 {[%clk 0:00:02]}  Kf8 {[%clk 0:00:15]} 44. Ra1 {[%clk 0:00:03]}  Rg7 {[%clk 0:00:13]} 45. Rah1 {[%clk 0:00:03]}  Kg8 {[%clk 0:00:14]} 46. Ra1 {[%clk 0:00:03]}  b5 {[%clk 0:00:14]} 47. Bd3 {[%clk 0:00:03]}  Nd7 {[%clk 0:00:14]} 48. Be2 {[%clk 0:00:03]}  Nf8 {[%clk 0:00:14]} 49. Rh4 {[%clk 0:00:03]}  Rf7 {[%clk 0:00:15]} 50. Rah1 {[%clk 0:00:03]}  c6 {[%clk 0:00:13]} 51. dxc6 {[%clk 0:00:03]}  Rc7 {[%clk 0:00:13]} 52. Ke3 {[%clk 0:00:03]}  Rxc6 {[%clk 0:00:14]} 53. Rh6 {[%clk 0:00:03]}  Rc3+ {[%clk 0:00:14]} 54. Bd3 {[%clk 0:00:03]}  Bxc2 {[%clk 0:00:14]} 55. Kd2 {[%clk 0:00:03]}  Rxd3+ {[%clk 0:00:14]} 56. Kxc2 {[%clk 0:00:04]}  Rxf3 {[%clk 0:00:15]} 57. R6h3 {[%clk 0:00:03]}  Rf4 {[%clk 0:00:13]} 58. Re3 {[%clk 0:00:04]}  Ne6 {[%clk 0:00:14]} 59. Rb1 {[%clk 0:00:04]}  Rg4 {[%clk 0:00:14]} 60. Rxb5 {[%clk 0:00:04]}  Nd4+ {[%clk 0:00:15]} 61. Kd3 {[%clk 0:00:03]}  Nxb5 {[%clk 0:00:16]} 62. Kc4 {[%clk 0:00:04]}  Nd4 {[%clk 0:00:16]} 63. Kd5 {[%clk 0:00:04]}  Rxg5 {[%clk 0:00:16]} 64. Kxd6 {[%clk 0:00:04]}  h5 {[%clk 0:00:16]} 65. Kd5 {[%clk 0:00:04]}  h4 {[%clk 0:00:15]} 66. Rh3 {[%clk 0:00:05]}  Rh5 {[%clk 0:00:16]} 67. Kd6 {[%clk 0:00:04]}  Kg7 {[%clk 0:00:16]} 68. Kd5 {[%clk 0:00:04]}  Kf6 {[%clk 0:00:16]} 69. Kd6 {[%clk 0:00:05]}  Kg5 {[%clk 0:00:16]} 70. Kxe5 {[%clk 0:00:05]}  Kg4+ {[%clk 0:00:17]} 71. Kxd4 {[%clk 0:00:05]}  Kxh3 {[%clk 0:00:18]} 72. e5 {[%clk 0:00:05]}  Rxe5 {[%clk 0:00:18]} 73. Kxe5 {[%clk 0:00:06]}  g5 {[%clk 0:00:19]} 74. Ke4 {[%clk 0:00:06]}  g4 {[%clk 0:00:20]} 75. Ke3 {[%clk 0:00:07]}  g3 {[%clk 0:00:21]} 76. Ke2 {[%clk 0:00:06]}  g2 {[%clk 0:00:22]} 77. Kf2 {[%clk 0:00:07]}  Kh2 {[%clk 0:00:22]} 78. Kf3 {[%clk 0:00:08]}  g1=Q {[%clk 0:00:23]} 79. Kf4 {[%clk 0:00:09]}  Qg3+ {[%clk 0:00:23]} 80. Kf5 {[%clk 0:00:09]}  Kg2 {[%clk 0:00:24]} 81. Ke4 {[%clk 0:00:10]}  h3 {[%clk 0:00:25]} 82. Kd5 {[%clk 0:00:11]}  h2 {[%clk 0:00:26]} 83. Ke4 {[%clk 0:00:12]}  h1=Q {[%clk 0:00:26]} 84. Kd4 {[%clk 0:00:13]}  Qhh4+ {[%clk 0:00:27]} 85. Kd5 {[%clk 0:00:14]}  Qgg5+ {[%clk 0:00:28]} 86. Ke6 {[%clk 0:00:14]}  Qhh6+ {[%clk 0:00:29]} 87. Kf7 {[%clk 0:00:15]}  Qgg7+ {[%clk 0:00:30]} 88. Ke8 {[%clk 0:00:14]}  Qhh8# {[%clk 0:00:31]} 0-1

[Event "January 9 Early 2024"]
[Site "https://www.chess.com"]
[Date "2024.01.11"]
[Round "8"]
[White "Souleidis, Georgios"]
[Black "Sidletskyi, Ivan"]
[Result "1-0"]
[Board "240"]
[TimeControl "180+1"]
[WhiteFideId "4206827"]
[BlackFideId "14156024"]
[WhiteElo "2635"]
[BlackElo "2502"]
[WhiteTeam "GRE"]
[BlackTeam "UKR"]
[WhiteClock "0:00:06"]
[BlackClock "0:00:14"]

1. e4 {[%clk 0:03:00]}  e6 {[%clk 0:03:00]} 2. d4 {[%clk 0:03:00]}  d5 {[%clk 0:03:00]} 3. Nc3 {[%clk 0:03:01]}  Nf6 {[%clk 0:03:00]} 4. Bg5 {[%clk 0:03:01]}  Bb4 {[%clk 0:03:00]} 5. e5 {[%clk 0:02:59]}  h6 {[%clk 0:03:00]} 6. Bd2 {[%clk 0:02:57]}  Bxc3 {[%clk 0:02:59]} 7. bxc3 {[%clk 0:02:58]}  Ne4 {[%clk 0:02:59]} 8. Bc1 {[%clk 0:02:58]}  c5 {[%clk 0:02:53]} 9. Ne2 {[%clk 0:02:54]}  Nc6 {[%clk 0:02:49]} 10. f3 {[%clk 0:02:54]}  Ng5 {[%clk 0:02:39]} 11. h4 {[%clk 0:02:54]}  Nh7 {[%clk 0:02:38]} 12. f4 {[%clk 0:02:54]}  Qa5 {[%clk 0:02:33]} 13. Bd2 {[%clk 0:02:48]}  Qa4 {[%clk 0:02:29]} 14. Be3 {[%clk 0:02:44]}  cxd4 {[%clk 0:02:17]} 15. cxd4 {[%clk 0:02:15]}  Nb4 {[%clk 0:01:45]} 16. c3 {[%clk 0:02:15]}  Qxd1+ {[%clk 0:01:34]} 17. Kxd1 {[%clk 0:02:16]}  Nc6 {[%clk 0:01:29]} 18. h5 {[%clk 0:02:06]}  Nf8 {[%clk 0:01:29]} 19. Rb1 {[%clk 0:02:05]}  Nd7 {[%clk 0:01:28]} 20. Nc1 {[%clk 0:01:58]}  Nb6 {[%clk 0:01:01]} 21. Nb3 {[%clk 0:01:58]}  Na4 {[%clk 0:01:01]} 22. Kd2 {[%clk 0:01:52]}  Bd7 {[%clk 0:00:54]} 23. Bd3 {[%clk 0:01:51]}  Rc8 {[%clk 0:00:51]} 24. g4 {[%clk 0:01:28]}  b6 {[%clk 0:00:24]} 25. f5 {[%clk 0:01:14]}  exf5 {[%clk 0:00:24]} 26. gxf5 {[%clk 0:01:14]}  Nxc3 {[%clk 0:00:25]} 27. Kxc3 {[%clk 0:01:12]}  Nxe5+ {[%clk 0:00:25]} 28. Kd2 {[%clk 0:01:11]}  Nxd3 {[%clk 0:00:26]} 29. Kxd3 {[%clk 0:01:11]}  Bxf5+ {[%clk 0:00:26]} 30. Ke2 {[%clk 0:01:10]}  Bxb1 {[%clk 0:00:25]} 31. Rxb1 {[%clk 0:01:10]}  Rc2+ {[%clk 0:00:25]} 32. Kf3 {[%clk 0:01:10]}  Rxa2 {[%clk 0:00:25]} 33. Rc1 {[%clk 0:01:08]}  O-O {[%clk 0:00:25]} 34. Nd2 {[%clk 0:01:01]}  Re8 {[%clk 0:00:23]} 35. Rc7 {[%clk 0:00:55]}  Ra3 {[%clk 0:00:20]} 36. Nf1 {[%clk 0:00:55]}  b5 {[%clk 0:00:17]} 37. Rb7 {[%clk 0:00:50]}  a6 {[%clk 0:00:17]} 38. Kf2 {[%clk 0:00:46]}  Ra2+ {[%clk 0:00:17]} 39. Kf3 {[%clk 0:00:44]}  Re6 {[%clk 0:00:15]} 40. Ng3 {[%clk 0:00:36]}  Rf6+ {[%clk 0:00:15]} 41. Bf4 {[%clk 0:00:32]}  Ra3+ {[%clk 0:00:14]} 42. Kg4 {[%clk 0:00:32]}  Ra1 {[%clk 0:00:09]} 43. Be5 {[%clk 0:00:20]}  Re6 {[%clk 0:00:09]} 44. Nf5 {[%clk 0:00:15]}  Rg1+ {[%clk 0:00:09]} 45. Kh3 {[%clk 0:00:14]}  Rg5 {[%clk 0:00:06]} 46. Ne3 {[%clk 0:00:01]}  Rgxe5 {[%clk 0:00:01]} 47. dxe5 {[%clk 0:00:01]}  Rxe5 {[%clk 0:00:02]} 48. Ng4 {[%clk 0:00:02]}  Re4 {[%clk 0:00:02]} 49. Kg3 {[%clk 0:00:02]}  d4 {[%clk 0:00:02]} 50. Rb8+ {[%clk 0:00:02]}  Kh7 {[%clk 0:00:02]} 51. Kf3 {[%clk 0:00:03]}  Re1 {[%clk 0:00:03]} 52. Kf4 {[%clk 0:00:02]}  d3 {[%clk 0:00:03]} 53. Rd8 {[%clk 0:00:02]}  Rd1 {[%clk 0:00:04]} 54. Ke3 {[%clk 0:00:02]}  Re1+ {[%clk 0:00:04]} 55. Kf2 {[%clk 0:00:02]}  Rd1 {[%clk 0:00:04]} 56. Kf3 {[%clk 0:00:02]}  Rf1+ {[%clk 0:00:04]} 57. Nf2 {[%clk 0:00:03]}  Rg1 {[%clk 0:00:04]} 58. Rxd3 {[%clk 0:00:03]}  Rg5 {[%clk 0:00:05]} 59. Ne4 {[%clk 0:00:03]}  Rxh5 {[%clk 0:00:05]} 60. Rd7 {[%clk 0:00:03]}  Rf5+ {[%clk 0:00:06]} 61. Ke3 {[%clk 0:00:03]}  Rf1 {[%clk 0:00:07]} 62. Ng3 {[%clk 0:00:03]}  Rg1 {[%clk 0:00:07]} 63. Kf2 {[%clk 0:00:03]}  Rc1 {[%clk 0:00:07]} 64. Rxf7 {[%clk 0:00:04]}  Rc2+ {[%clk 0:00:08]} 65. Kf3 {[%clk 0:00:04]}  Rc4 {[%clk 0:00:08]} 66. Ra7 {[%clk 0:00:04]}  Rc6 {[%clk 0:00:09]} 67. Nf5 {[%clk 0:00:03]}  Rf6 {[%clk 0:00:09]} 68. Kg4 {[%clk 0:00:04]}  h5+ {[%clk 0:00:10]} 69. Kg5 {[%clk 0:00:04]}  h4 {[%clk 0:00:10]} 70. Rxg7+ {[%clk 0:00:03]}  Kh8 {[%clk 0:00:09]} 71. Kxf6 {[%clk 0:00:04]}  h3 {[%clk 0:00:09]} 72. Rg4 {[%clk 0:00:03]}  h2 {[%clk 0:00:09]} 73. Rg3 {[%clk 0:00:04]}  h1=Q {[%clk 0:00:09]} 74. Rg5 {[%clk 0:00:03]}  Qc6+ {[%clk 0:00:10]} 75. Kf7 {[%clk 0:00:03]}  Qd7+ {[%clk 0:00:10]} 76. Ne7 {[%clk 0:00:03]}  Qd1 {[%clk 0:00:08]} 77. Rg6 {[%clk 0:00:02]}  Qf3+ {[%clk 0:00:08]} 78. Rf6 {[%clk 0:00:03]}  Kh7 {[%clk 0:00:09]} 79. Rxf3 {[%clk 0:00:03]}  Kh6 {[%clk 0:00:10]} 80. Kf6 {[%clk 0:00:03]}  b4 {[%clk 0:00:10]} 81. Rb3 {[%clk 0:00:02]}  Kh5 {[%clk 0:00:11]} 82. Nd5 {[%clk 0:00:03]}  Kg4 {[%clk 0:00:12]} 83. Nxb4 {[%clk 0:00:04]}  Kf4 {[%clk 0:00:12]} 84. Nxa6 {[%clk 0:00:05]}  Ke4 {[%clk 0:00:13]} 85. Rb6 {[%clk 0:00:05]}  Kd5 {[%clk 0:00:14]} 86. Re6 {[%clk 0:00:06]} 1-0

[Event "January 9 Early 2024"]
[Site "https://www.chess.com"]
[Date "2024.01.11"]
[Round "8"]
[White "Albuquerque Junior,Wellington S."]
[Black "Cardozo Munar, Carlos Eduardo"]
[Result "1-0"]
[Board "241"]
[TimeControl "180+1"]
[WhiteFideId "2151480"]
[BlackFideId "4409477"]
[WhiteElo "2390"]
[BlackElo "2220"]
[WhiteTeam "BRA"]
[BlackTeam "COL"]
[WhiteClock "0:00:25"]
[BlackClock "0:00:19"]

1. c4 {[%clk 0:03:00]}  Nf6 {[%clk 0:02:59]} 2. g3 {[%clk 0:03:01]}  g6 {[%clk 0:02:58]} 3. Bg2 {[%clk 0:03:01]}  Bg7 {[%clk 0:02:58]} 4. Nc3 {[%clk 0:03:02]}  O-O {[%clk 0:02:58]} 5. e4 {[%clk 0:03:02]}  d6 {[%clk 0:02:57]} 6. Nge2 {[%clk 0:03:03]}  Nbd7 {[%clk 0:02:58]} 7. O-O {[%clk 0:03:02]}  e5 {[%clk 0:02:59]} 8. d3 {[%clk 0:03:03]}  a6 {[%clk 0:02:59]} 9. h3 {[%clk 0:03:00]}  c6 {[%clk 0:02:58]} 10. Be3 {[%clk 0:02:57]}  Qe7 {[%clk 0:02:59]} 11. d4 {[%clk 0:02:55]}  exd4 {[%clk 0:02:58]} 12. Nxd4 {[%clk 0:02:53]}  Nc5 {[%clk 0:02:56]} 13. Qc2 {[%clk 0:02:38]}  Re8 {[%clk 0:02:55]} 14. Rfe1 {[%clk 0:02:33]}  Nfxe4 {[%clk 0:02:29]} 15. Nxe4 {[%clk 0:02:30]}  Nxe4 {[%clk 0:02:29]} 16. Rad1 {[%clk 0:02:25]}  d5 {[%clk 0:01:53]} 17. cxd5 {[%clk 0:02:25]}  cxd5 {[%clk 0:01:53]} 18. Nb3 {[%clk 0:02:19]}  Be6 {[%clk 0:01:44]} 19. Bd4 {[%clk 0:02:16]}  Rac8 {[%clk 0:01:43]} 20. Qb1 {[%clk 0:02:11]}  Bxd4 {[%clk 0:01:40]} 21. Nxd4 {[%clk 0:02:10]}  Qf6 {[%clk 0:01:36]} 22. Bxe4 {[%clk 0:01:58]}  dxe4 {[%clk 0:01:34]} 23. Qxe4 {[%clk 0:01:51]}  Bxh3 {[%clk 0:01:30]} 24. Qxe8+ {[%clk 0:01:41]}  Rxe8 {[%clk 0:01:30]} 25. Rxe8+ {[%clk 0:01:42]}  Kg7 {[%clk 0:01:28]} 26. Re3 {[%clk 0:01:34]}  h5 {[%clk 0:01:23]} 27. f3 {[%clk 0:01:28]}  b5 {[%clk 0:01:16]} 28. Kf2 {[%clk 0:01:26]}  h4 {[%clk 0:01:01]} 29. Rg1 {[%clk 0:01:26]}  Bd7 {[%clk 0:00:57]} 30. Rd3 {[%clk 0:01:14]}  Bc8 {[%clk 0:00:42]} 31. Rd2 {[%clk 0:01:07]}  Bb7 {[%clk 0:00:38]} 32. gxh4 {[%clk 0:00:59]}  Qxh4+ {[%clk 0:00:36]} 33. Ke3 {[%clk 0:01:00]}  Qe7+ {[%clk 0:00:27]} 34. Kf2 {[%clk 0:00:55]}  Qc5 {[%clk 0:00:23]} 35. a3 {[%clk 0:00:50]}  a5 {[%clk 0:00:22]} 36. Rg4 {[%clk 0:00:47]}  b4 {[%clk 0:00:21]} 37. axb4 {[%clk 0:00:47]}  axb4 {[%clk 0:00:22]} 38. Rg1 {[%clk 0:00:43]}  Bd5 {[%clk 0:00:20]} 39. Rgd1 {[%clk 0:00:41]}  Bb7 {[%clk 0:00:17]} 40. Re1 {[%clk 0:00:40]}  g5 {[%clk 0:00:16]} 41. Rg1 {[%clk 0:00:37]}  Kg6 {[%clk 0:00:16]} 42. f4 {[%clk 0:00:35]}  f6 {[%clk 0:00:16]} 43. fxg5 {[%clk 0:00:35]}  fxg5 {[%clk 0:00:16]} 44. Re1 {[%clk 0:00:35]}  Qd5 {[%clk 0:00:16]} 45. Re6+ {[%clk 0:00:36]}  Kh5 {[%clk 0:00:15]} 46. Re3 {[%clk 0:00:31]}  Qg2+ {[%clk 0:00:15]} 47. Ke1 {[%clk 0:00:32]}  Qg1+ {[%clk 0:00:14]} 48. Ke2 {[%clk 0:00:32]}  Qg2+ {[%clk 0:00:15]} 49. Kd3 {[%clk 0:00:32]}  Qf1+ {[%clk 0:00:14]} 50. Kc2 {[%clk 0:00:31]}  Ba6 {[%clk 0:00:13]} 51. Rh2+ {[%clk 0:00:29]}  Kg6 {[%clk 0:00:13]} 52. Rd2 {[%clk 0:00:29]}  Qf7 {[%clk 0:00:11]} 53. Re6+ {[%clk 0:00:29]}  Kg7 {[%clk 0:00:10]} 54. Rxa6 {[%clk 0:00:29]}  Qc4+ {[%clk 0:00:09]} 55. Kd1 {[%clk 0:00:25]}  b3 {[%clk 0:00:10]} 56. Ra7+ {[%clk 0:00:24]}  Kg6 {[%clk 0:00:09]} 57. Re7 {[%clk 0:00:22]}  Qf1+ {[%clk 0:00:08]} 58. Re1 {[%clk 0:00:22]}  Qa6 {[%clk 0:00:08]} 59. Re6+ {[%clk 0:00:23]}  Qxe6 {[%clk 0:00:08]} 60. Nxe6 {[%clk 0:00:24]}  Kf5 {[%clk 0:00:09]} 61. Nxg5 {[%clk 0:00:24]}  Kxg5 {[%clk 0:00:09]} 62. Rd3 {[%clk 0:00:25]}  Kf4 {[%clk 0:00:10]} 63. Rxb3 {[%clk 0:00:26]}  Ke5 {[%clk 0:00:10]} 64. Rc3 {[%clk 0:00:26]}  Kd6 {[%clk 0:00:11]} 65. Kc2 {[%clk 0:00:27]}  Kd7 {[%clk 0:00:11]} 66. Kb1 {[%clk 0:00:28]}  Kd6 {[%clk 0:00:12]} 67. Ka2 {[%clk 0:00:29]}  Kd5 {[%clk 0:00:12]} 68. Ka3 {[%clk 0:00:30]}  Kd4 {[%clk 0:00:13]} 69. Ka4 {[%clk 0:00:31]}  Kd5 {[%clk 0:00:14]} 70. Ka5 {[%clk 0:00:32]}  Kd4 {[%clk 0:00:15]} 71. Ka6 {[%clk 0:00:33]}  Kd5 {[%clk 0:00:15]} 72. Ka7 {[%clk 0:00:34]}  Kd4 {[%clk 0:00:16]} 73. Kb6 {[%clk 0:00:29]}  Kd5 {[%clk 0:00:17]} 74. Rc5+ {[%clk 0:00:28]}  Kd4 {[%clk 0:00:17]} 75. b3 {[%clk 0:00:29]}  Kd3 {[%clk 0:00:16]} 76. b4 {[%clk 0:00:30]}  Kd4 {[%clk 0:00:17]} 77. b5 {[%clk 0:00:28]}  Kd3 {[%clk 0:00:16]} 78. Kc6 {[%clk 0:00:29]}  Kd4 {[%clk 0:00:16]} 79. b6 {[%clk 0:00:29]}  Kd3 {[%clk 0:00:16]} 80. b7 {[%clk 0:00:30]}  Kd4 {[%clk 0:00:17]} 81. b8=Q {[%clk 0:00:29]}  Kd3 {[%clk 0:00:18]} 82. Qd8+ {[%clk 0:00:28]}  Ke4 {[%clk 0:00:18]} 83. Rd5 {[%clk 0:00:26]}  Kf3 {[%clk 0:00:18]} 84. Qf6+ {[%clk 0:00:26]}  Ke4 {[%clk 0:00:19]} 85. Qe6+ {[%clk 0:00:25]}  Kf4 {[%clk 0:00:19]} 86. Rf5+ {[%clk 0:00:25]} 1-0